bitfinex/quotes_BTCUSD_20240729
["timestamp","ask_amount","ask_price","bid_price","bid_amount"]
[1722267702445,0.14309939,68268.0,68262.0,0.07154355]
[1722267702648,0.14309939,68268.0,68251.0,0.146517]
[1722267702649,0.29769939,68268.0,68249.0,0.076]
[1722267702849,0.29769939,68268.0,68250.0,0.05]
[1722267702850,0.1546,68266.0,68250.0,0.05]
[1722267703075,0.15340246,68265.0,68250.0,0.05]
[1722267703299,0.15340246,68265.0,68249.0,0.076]
[1722267703300,0.01121606,68264.0,68249.0,0.126]
[1722267703511,0.00091299,68262.0,68254.0,0.07154355]
[1722267703746,0.14309939,68261.0,68254.0,0.12154355]
[1722267703958,0.29294,68274.0,68254.0,0.12154355]
[1722267703959,0.1546,68276.0,68261.0,0.12154355]
[1722267704177,0.0015542,68274.0,68268.0,0.07154355]
[1722267704418,0.14309939,68273.0,68268.0,0.12154355]
[1722267704644,0.14309939,68273.0,68267.0,0.078]
[1722267704645,0.0015542,68272.0,68267.0,0.078]
[1722267704804,0.01435828,68277.0,68267.0,0.078]
[1722267704805,0.14309939,68271.0,68267.0,0.078]
[1722267705858,0.0015542,68270.0,68267.0,0.078]
[1722267706058,0.14309939,68269.0,68267.0,0.078]
[1722267706269,0.14309939,68269.0,68258.0,0.1]
[1722267706270,0.0015542,68267.0,68249.0,0.06443534]
[1722267706468,0.0015542,68267.0,68250.0,0.42926131]
[1722267706469,0.1546,68261.0,68250.0,0.42926131]
[1722267706733,0.14651,68255.0,68241.0,0.05]
[1722267707056,0.2226542,68253.0,68234.0,0.05]
[1722267707287,0.2226542,68253.0,68235.0,0.05]
[1722267707288,0.1546,68250.0,68235.0,0.05]
[1722267707513,0.14309939,68249.0,68235.0,0.05]
[1722267707737,0.14309939,68249.0,68228.0,0.05]
[1722267707738,0.29769939,68249.0,68228.0,0.05]
[1722267708001,0.439581,68247.0,68229.0,0.05]
[1722267708270,0.29769939,68249.0,68229.0,0.05]
[1722267708271,0.14309939,68246.0,68234.0,0.05]
[1722267708503,0.14309939,68246.0,68230.0,0.05]
[1722267708999,0.14309939,68246.0,68234.0,0.05]
[1722267709284,0.14309939,68246.0,68236.0,0.05]
[1722267709506,0.14309939,68246.0,68238.0,0.05]
[1722267709741,0.14309939,68246.0,68237.0,0.1433]
[1722267709981,0.146531,68245.0,68237.0,0.1433]
[1722267710224,0.14309939,68244.0,68237.0,0.0812]
[1722267710457,0.16608863,68244.0,68233.0,0.12154355]
[1722267710687,0.16608863,68244.0,68233.0,0.07154355]
[1722267710897,0.14309939,68244.0,68233.0,0.07154355]
[1722267711099,0.14309939,68244.0,68233.0,0.12154355]
[1722267711312,0.14309939,68244.0,68238.0,0.05]
[1722267711521,0.14309939,68244.0,68236.0,0.05]
[1722267711761,0.14309939,68244.0,68240.0,0.07154355]
[1722267712395,0.00085618,68253.0,68240.0,0.12154355]
[1722267712593,0.15349935,68252.0,68240.0,0.07154355]
[1722267712796,0.15349935,68252.0,68240.0,0.12154355]
[1722267712797,0.01039996,68251.0,68240.0,0.12154355]
[1722267713048,0.14309939,68250.0,68241.0,0.05]
[1722267713650,0.14309939,68250.0,68240.0,0.07154355]
[1722267713940,0.14309939,68250.0,68241.0,0.05]
[1722267714144,0.02298835,68248.0,68241.0,0.05]
[1722267714347,0.14309939,68247.0,68242.0,0.05]
[1722267714621,0.14309939,68247.0,68234.0,0.05]
[1722267714821,0.14309939,68247.0,68233.0,0.07154355]
[1722267714822,0.14309939,68247.0,68236.0,0.05]
[1722267715022,0.14309939,68247.0,68240.0,0.07154355]
[1722267716011,0.43615439,68247.0,68240.0,0.07154355]
[1722267716415,0.28962639,68247.0,68240.0,0.07154355]
[1722267716639,0.01045351,68246.0,68240.0,0.07154355]
[1722267716892,0.14309939,68245.0,68240.0,0.07154355]
[1722267717090,0.01045351,68244.0,68240.0,0.07154355]
[1722267717305,0.14309939,68243.0,68233.0,0.07154355]
[1722267717788,0.01048052,68242.0,68233.0,0.07154355]
[1722267718015,0.01048052,68242.0,68230.0,0.0812]
[1722267718016,0.29769939,68241.0,68230.0,0.0812]
[1722267718186,0.29769939,68241.0,68226.0,0.13524355]
[1722267718187,0.146548,68237.0,68226.0,0.13524355]
[1722267718332,0.15357991,68236.0,68226.0,0.13524355]
[1722267718706,0.01048052,68235.0,68226.0,0.13524355]
[1722267718846,0.14309939,68234.0,68226.0,0.13524355]
[1722267719048,0.14309939,68234.0,68222.0,0.081]
[1722267719049,0.01048052,68233.0,68222.0,0.081]
[1722267719229,0.14309939,68232.0,68222.0,0.081]
[1722267719473,0.15361781,68232.0,68222.0,0.081]
[1722267719683,0.146568,68228.0,68222.0,0.081]
[1722267719907,0.15361781,68227.0,68213.0,0.0782]
[1722267720194,0.01051842,68226.0,68213.0,0.0782]
[1722267720406,0.01051842,68226.0,68211.0,0.13655655]
[1722267720407,0.293178,68218.0,68211.0,0.000913]
[1722267720647,0.30020981,68217.0,68211.0,0.000913]
[1722267720863,0.01051842,68216.0,68211.0,0.000913]
[1722267721073,0.14309939,68215.0,68211.0,0.000913]
[1722267721286,0.01051842,68214.0,68212.0,0.07154355]
[1722267721493,0.14309939,68213.0,68212.0,0.07154355]
[1722267721702,0.15361781,68213.0,68212.0,0.07154355]
[1722267722131,0.1766176,68213.0,68212.0,0.07154355]
[1722267722542,0.15361781,68213.0,68212.0,0.07154355]
[1722267724104,0.16770841,68213.0,68212.0,0.07154355]
[1722267724312,0.594404,68212.0,68211.0,0.000913]
[1722267724503,0.74802181,68212.0,68211.0,0.000913]
[1722267724970,0.74347981,68212.0,68211.0,0.000913]
[1722267725589,0.73296139,68212.0,68211.0,0.000913]
[1722267725792,0.74356584,68212.0,68211.0,0.000913]
[1722267726192,0.45036284,68212.0,68211.0,0.000913]
[1722267726412,0.15370384,68212.0,68211.0,0.000913]
[1722267727042,0.74810784,68212.0,68211.0,0.000913]
[1722267727244,0.32197072,68212.0,68211.0,0.000913]
[1722267727598,0.31136627,68212.0,68211.0,0.000913]
[1722267727760,0.32200926,68212.0,68211.0,0.000913]
[1722267727970,0.21136627,68212.0,68211.0,0.000913]
[1722267728337,0.05676627,68212.0,68211.0,0.000913]
[1722267728543,0.907952,68224.0,68213.0,0.05]
[1722267728544,0.472,68224.0,68213.0,0.05]
[1722267728746,0.472,68224.0,68223.0,0.07154355]
[1722267728952,1.2652,68237.0,68231.0,0.05]
[1722267728953,1.7372,68237.0,68231.0,0.05]
[1722267729154,0.8411,68244.0,68231.0,0.05]
[1722267729155,0.146537,68242.0,68233.0,0.07154355]
[1722267729355,0.01059573,68236.0,68233.0,0.07154355]
[1722267729568,0.301142,68240.0,68233.0,0.07154355]
[1722267729693,0.01059157,68239.0,68233.0,0.07154355]
[1722267730104,0.14309939,68238.0,68231.0,0.0638]
[1722267730304,0.01059157,68237.0,68230.0,0.0804]
[1722267730520,0.01059157,68237.0,68223.0,0.0815]
[1722267730521,0.1546,68232.0,68223.0,0.0815]
[1722267730724,0.1546,68229.0,68219.0,0.0635]
[1722267730943,0.30826026,68228.0,68216.0,0.0815]
[1722267731186,0.01056087,68227.0,68216.0,0.0815]
[1722267731445,0.14309939,68226.0,68217.0,0.12154355]
[1722267731838,0.01056854,68225.0,68217.0,0.07154355]
[1722267732115,0.01056854,68225.0,68216.0,0.0815]
[1722267732116,0.14309939,68224.0,68216.0,0.0815]
[1722267732319,0.14309939,68224.0,68213.0,0.0635]
[1722267732320,0.1546,68222.0,68213.0,0.0635]
[1722267732527,0.1546,68222.0,68211.0,0.000913]
[1722267732528,0.44683457,68221.0,68211.0,0.000913]
[1722267732901,0.1546,68215.0,68211.0,0.000913]
[1722267733134,0.15367057,68214.0,68211.0,0.000913]
[1722267733341,0.01057118,68213.0,68211.0,0.000913]
[1722267733551,0.1546,68215.0,68211.0,0.000913]
[1722267733552,0.14309939,68212.0,68211.0,0.000913]
[1722267733741,0.15365699,68212.0,68211.0,0.000913]
[1722267733949,0.14309939,68212.0,68211.0,0.000913]
[1722267734158,0.15365492,68212.0,68211.0,0.000913]
[1722267734790,0.17665492,68212.0,68211.0,0.000913]
[1722267735160,0.33125492,68212.0,68211.0,0.000913]
[1722267735693,0.47785592,68212.0,68211.0,0.000913]
[1722267735855,0.33125492,68212.0,68211.0,0.000913]
[1722267736054,0.47785592,68212.0,68211.0,0.000913]
[1722267736247,0.33125492,68212.0,68211.0,0.000913]
[1722267737448,0.04042976,68225.0,68212.0,0.1922]
[1722267737660,0.04042976,68225.0,68224.0,0.05]
[1722267737661,0.14309939,68225.0,68224.0,0.05]
[1722267737895,0.14309939,68225.0,68219.0,0.07154355]
[1722267738337,0.1536625,68225.0,68219.0,0.07154355]
[1722267738553,0.1536625,68225.0,68221.0,0.05]
[1722267738763,0.14309939,68225.0,68224.0,0.05]
[1722267738985,0.15361746,68225.0,68221.0,0.05]
[1722267739195,0.14309939,68225.0,68222.0,0.05]
[1722267739425,0.14309939,68225.0,68224.0,0.05]
[1722267739691,0.15360412,68225.0,68224.0,0.05]
[1722267739915,0.30820412,68225.0,68213.0,0.05]
[1722267740149,0.30820412,68225.0,68214.0,0.12154355]
[1722267740150,0.17660412,68224.0,68214.0,0.12154355]
[1722267740392,0.01050473,68223.0,68222.0,0.07154355]
[1722267740604,0.01050473,68223.0,68222.0,0.12154355]
[1722267740818,0.01341539,68231.0,68224.0,0.05]
[1722267741031,0.16609939,68230.0,68224.0,0.05]
[1722267741248,0.16609939,68230.0,68222.0,0.07154355]
[1722267741249,0.16609939,68230.0,68226.0,0.05]
[1722267741471,0.14309939,68230.0,68229.0,0.21404355]
[1722267741676,0.15357362,68230.0,68229.0,0.21404355]
[1722267741900,0.15357362,68230.0,68229.0,0.1425]
[1722267742106,0.01345523,68240.0,68229.0,0.1925]
[1722267742317,0.15354726,68239.0,68231.0,0.07154355]
[1722267742534,0.01044787,68238.0,68231.0,0.07154355]
[1722267742711,0.14309939,68237.0,68229.0,0.1425]
[1722267742913,0.01044787,68236.0,68229.0,0.1425]
[1722267743114,0.14309939,68235.0,68229.0,0.1425]
[1722267743338,0.01044787,68234.0,68229.0,0.1425]
[1722267743475,0.14309939,68233.0,68229.0,0.1425]
[1722267743676,0.14309939,68233.0,68214.0,0.07154355]
[1722267743677,0.01044787,68232.0,68218.0,0.05]
[1722267743914,0.14309939,68231.0,68218.0,0.05]
[1722267744065,0.14309939,68231.0,68214.0,0.18544355]
[1722267744066,0.1546,68229.0,68214.0,0.18544355]
[1722267744279,0.29769939,68228.0,68214.0,0.0639]
[1722267744493,0.29769939,68228.0,68214.0,0.1139]
[1722267744746,0.03345259,68227.0,68214.0,0.0639]
[1722267744961,0.15355198,68226.0,68214.0,0.0639]
[1722267745195,0.03345259,68225.0,68216.0,0.05]
[1722267745387,0.03345259,68225.0,68215.0,0.07154355]
[1722267745388,0.15355198,68224.0,68215.0,0.07154355]
[1722267745610,0.01045259,68223.0,68215.0,0.07154355]
[1722267745807,0.14309939,68222.0,68215.0,0.07154355]
[1722267746015,0.01045259,68221.0,68215.0,0.07154355]
[1722267746182,0.14309939,68220.0,68215.0,0.07154355]
[1722267746413,0.01045259,68219.0,68216.0,0.05]
[1722267746634,0.01045259,68219.0,68215.0,0.07154355]
[1722267746635,0.14309939,68218.0,68215.0,0.07154355]
[1722267746827,0.01045259,68217.0,68216.0,0.05]
[1722267747299,0.02299708,68217.0,68216.0,0.05]
[1722267747486,0.03347245,68217.0,68216.0,0.05]
[1722267747890,0.01047537,68217.0,68215.0,0.07154355]
[1722267748237,0.023,68225.0,68215.0,0.07154355]
[1722267748238,0.01047537,68216.0,68215.0,0.07154355]
[1722267748359,0.01047537,68216.0,68215.0,0.12154355]
[1722267748566,0.023,68225.0,68215.0,0.12154355]
[1722267748567,0.023,68225.0,68219.0,0.05]
[1722267748807,0.0139988,68229.0,68222.0,0.07154355]
[1722267748808,0.15357003,68224.0,68222.0,0.07154355]
[1722267749044,0.15356835,68224.0,68222.0,0.07154355]
[1722267749336,0.01046896,68223.0,68222.0,0.07154355]
[1722267749569,0.15356835,68223.0,68222.0,0.07154355]
[1722267750124,0.15356835,68223.0,68215.0,0.07154355]
[1722267750125,0.15356835,68223.0,68217.0,0.05]
[1722267750323,0.15356835,68223.0,68215.0,0.07154355]
[1722267750324,0.14309939,68222.0,68218.0,0.05]
[1722267750527,0.14309939,68222.0,68214.0,0.0639]
[1722267750729,0.15354186,68222.0,68214.0,0.0639]
[1722267750928,0.01044247,68221.0,68215.0,0.07154355]
[1722267751183,0.14309939,68220.0,68215.0,0.07154355]
[1722267751385,0.14309939,68220.0,68215.0,0.12154355]
[1722267751386,0.01044247,68219.0,68215.0,0.12154355]
[1722267751546,0.15354186,68219.0,68217.0,0.05]
[1722267751722,0.01044247,68218.0,68217.0,0.05]
[1722267752391,0.01044247,68218.0,68217.0,0.15]
[1722267752616,0.1,68239.0,68229.0,0.05]
[1722267752842,0.23374863,68238.0,68233.0,0.07154355]
[1722267753066,0.23374863,68238.0,68233.0,0.12154355]
[1722267753067,0.01050854,68237.0,68233.0,0.12154355]
[1722267753308,0.01050854,68237.0,68234.0,0.05]
[1722267753505,0.14309939,68238.0,68235.0,0.05]
[1722267753707,0.01048478,68236.0,68235.0,0.05]
[1722267753930,0.01048478,68237.0,68235.0,0.05]
[1722267754176,0.01048478,68237.0,68233.0,0.07154355]
[1722267754177,0.0137851,68243.0,68238.0,0.05]
[1722267754365,0.15362867,68242.0,68233.0,0.07154355]
[1722267754525,0.15362867,68242.0,68238.0,0.05]
[1722267754526,0.01052928,68241.0,68238.0,0.05]
[1722267754724,0.15362867,68241.0,68238.0,0.05]
[1722267754949,0.01052928,68240.0,68238.0,0.05]
[1722267755147,0.15362867,68240.0,68234.0,0.05]
[1722267755321,0.01052928,68239.0,68234.0,0.05]
[1722267755768,0.02299071,68238.0,68234.0,0.05]
[1722267755972,0.01052928,68237.0,68234.0,0.05]
[1722267756173,0.01052928,68237.0,68233.0,0.07154355]
[1722267756174,0.01052928,68237.0,68236.0,0.05]
[1722267756645,0.01052928,68239.0,68234.0,0.05]
[1722267756850,0.01052342,68237.0,68234.0,0.05]
[1722267757306,0.01052342,68236.0,68235.0,0.05]
[1722267757473,0.00084,68241.0,68240.0,0.05]
[1722267757897,0.00084,68241.0,68240.0,0.15]
[1722267758018,0.01136626,68241.0,68240.0,0.15]
[1722267758682,0.01136626,68241.0,68240.0,0.05]
[1722267759130,0.01136626,68241.0,68235.0,0.05]
[1722267759329,0.01052626,68240.0,68235.0,0.05]
[1722267759584,0.01052626,68240.0,68237.0,0.05]
[1722267759935,0.00084,68241.0,68237.0,0.05]
[1722267760147,0.00084,68241.0,68233.0,0.07154355]
[1722267760148,0.00084,68241.0,68240.0,0.07154355]
[1722267760344,0.01138639,68241.0,68240.0,0.26204355]
[1722267760526,0.01138639,68241.0,68240.0,0.36204355]
[1722267761510,0.00084,68241.0,68240.0,0.36204355]
[1722267762433,0.00084,68241.0,68240.0,0.80166755]
[1722267762655,0.02382805,68241.0,68240.0,0.80166755]
[1722267763106,0.00084,68241.0,68240.0,0.80166755]
[1722267764260,0.00084,68241.0,68240.0,0.50858455]
[1722267764675,0.00084,68241.0,68240.0,0.80166755]
[1722267765109,0.00084,68241.0,68240.0,1.09475055]
[1722267765819,0.00084,68241.0,68240.0,0.80166755]
[1722267766502,0.02382513,68241.0,68240.0,0.80166755]
[1722267766734,0.00084,68241.0,68240.0,0.80166755]
[1722267766939,0.00084,68241.0,68240.0,0.50858455]
[1722267767316,0.00084,68241.0,68240.0,0.80166755]
[1722267767732,0.00084,68241.0,68240.0,1.38485055]
[1722267767856,0.00084,68241.0,68240.0,1.09176755]
[1722267768257,0.00084,68241.0,68240.0,1.23486694]
[1722267768470,0.00084,68241.0,68240.0,2.02314474]
[1722267768877,0.00084,68241.0,68240.0,2.31622774]
[1722267769084,0.00084,68241.0,68240.0,2.36677087]
[1722267769458,0.141,68280.0,68240.0,2.36677087]
[1722267769459,0.1557614,68279.0,68271.0,0.05]
[1722267769654,0.1557614,68279.0,68272.0,0.12154355]
[1722267769655,0.14309939,68278.0,68272.0,0.12154355]
[1722267769857,0.01048937,68277.0,68273.0,0.05]
[1722267770141,0.01048937,68277.0,68274.0,0.05]
[1722267770965,0.01048937,68277.0,68265.0,0.28223055]
[1722267770966,0.01048937,68277.0,68268.0,0.05]
[1722267771377,0.01048937,68277.0,68271.0,0.05]
[1722267771789,0.01048937,68277.0,68267.0,0.1]
[1722267771790,0.01048937,68277.0,68273.0,0.05]
[1722267771990,0.01048937,68277.0,68270.0,0.05]
[1722267772231,0.1,68277.0,68270.0,0.05]
[1722267772451,0.00130171,68276.0,68270.0,0.05]
[1722267772636,0.00130171,68276.0,68267.0,0.05]
[1722267772637,0.14309939,68275.0,68267.0,0.05]
[1722267772812,0.01203025,68274.0,68258.0,0.13504355]
[1722267773012,0.01203025,68274.0,68262.0,0.05]
[1722267773013,0.1442,68272.0,68262.0,0.05]
[1722267773224,0.1442,68272.0,68257.0,0.05]
[1722267773225,0.15512964,68271.0,68257.0,0.05]
[1722267773465,0.03345757,68270.0,68261.0,0.05]
[1722267773663,0.17812964,68269.0,68261.0,0.05]
[1722267773874,0.01047605,68268.0,68265.0,0.12154355]
[1722267774081,0.01047605,68268.0,68267.0,0.05]
[1722267774284,0.0654,68277.0,68265.0,0.07154355]
[1722267774285,0.01047605,68269.0,68265.0,0.07154355]
[1722267774513,0.0654,68277.0,68265.0,0.12154355]
[1722267774514,0.0015542,68268.0,68265.0,0.12154355]
[1722267774736,0.246458,68279.0,68267.0,0.05]
[1722267774737,0.0015542,68276.0,68267.0,0.05]
[1722267774943,0.15360415,68275.0,68273.0,0.07154355]
[1722267775077,0.01205896,68274.0,68273.0,0.07154355]
[1722267775279,0.15515835,68274.0,68273.0,0.07154355]
[1722267775485,0.15507963,68274.0,68273.0,0.07154355]
[1722267775706,0.15352543,68274.0,68273.0,0.07154355]
[1722267777644,0.15352543,68274.0,68265.0,0.07154355]
[1722267777824,0.15507963,68273.0,68265.0,0.07154355]
[1722267778023,0.01042604,68272.0,68265.0,0.07154355]
[1722267778175,0.14465359,68271.0,68265.0,0.12154355]
[1722267778382,0.14465359,68271.0,68267.0,0.05]
[1722267778603,0.14465359,68271.0,68265.0,0.07154355]
[1722267778604,0.14465359,68271.0,68266.0,0.05]
[1722267778805,0.14465359,68271.0,68267.0,0.05]
[1722267779129,0.14465359,68271.0,68269.0,0.05]
[1722267779487,0.14465359,68271.0,68267.0,0.1329]
[1722267779919,0.14465359,68271.0,68270.0,0.05]
[1722267780121,0.0134382,68275.0,68270.0,0.05]
[1722267780271,0.01200931,68274.0,68271.0,0.1]
[1722267780471,0.01200931,68274.0,68268.0,0.0607]
[1722267780472,0.0015542,68274.0,68273.0,0.15]
[1722267780899,0.0609,68291.0,68277.0,0.05]
[1722267780900,0.01379368,68283.0,68277.0,0.05]
[1722267781099,0.0015542,68290.0,68277.0,0.15]
[1722267781100,0.01040689,68282.0,68277.0,0.15]
[1722267781319,0.0015542,68290.0,68277.0,0.15]
[1722267781320,0.02202486,68289.0,68277.0,0.15]
[1722267781523,0.02202486,68289.0,68278.0,0.05]
[1722267781524,0.02297694,68282.0,68278.0,0.05]
[1722267781721,0.01189653,68288.0,68277.0,0.05]
[1722267781722,0.0015542,68288.0,68277.0,0.05]
[1722267781921,0.01034351,68281.0,68277.0,0.15]
[1722267782123,0.0015142,68280.0,68278.0,0.05]
[1722267782325,0.0015142,68280.0,68279.0,0.15]
[1722267782613,0.00826,68289.0,68277.0,0.05]
[1722267782760,0.00826,68289.0,68279.0,0.05]
[1722267782761,0.0015142,68288.0,68279.0,0.05]
[1722267782963,0.01031947,68287.0,68279.0,0.05]
[1722267783168,0.0015142,68286.0,68280.0,0.05]
[1722267783372,0.01031947,68285.0,68278.0,0.05]
[1722267783584,0.01031947,68285.0,68268.0,0.07528675]
[1722267783585,0.0015142,68284.0,68269.0,0.05]
[1722267783757,0.01031947,68283.0,68271.0,0.05]
[1722267783963,0.01031947,68283.0,68268.0,0.07528675]
[1722267783964,0.0677142,68282.0,68273.0,0.05]
[1722267784162,0.15341886,68281.0,68279.0,0.07154355]
[1722267784535,0.01183367,68280.0,68279.0,0.07154355]
[1722267784743,0.15493306,68280.0,68279.0,0.07154355]
[1722267784970,0.14309939,68280.0,68279.0,0.07154355]
[1722267785199,0.15340903,68280.0,68279.0,0.07154355]
[1722267785384,0.01030964,68280.0,68279.0,0.22154355]
[1722267786103,0.02149468,68289.0,68279.0,0.22154355]
[1722267786104,0.01030798,68288.0,68285.0,0.05]
[1722267786272,0.02149468,68289.0,68279.0,0.17154355]
[1722267786273,0.15340735,68287.0,68286.0,0.07154355]
[1722267787445,0.15340735,68287.0,68282.0,0.1411]
[1722267787656,0.14309939,68287.0,68286.0,0.05]
[1722267787826,0.15338631,68287.0,68285.0,0.05]
[1722267788075,0.01028692,68287.0,68286.0,0.22154355]
[1722267788303,0.00826,68289.0,68286.0,0.12154355]
[1722267788458,0.0015142,68288.0,68287.0,0.05]
[1722267788855,0.0015142,68288.0,68286.0,0.07154355]
[1722267788856,0.00826,68289.0,68288.0,0.05]
[1722267789672,0.00826,68289.0,68286.0,0.12154355]
[1722267789874,0.00826,68289.0,68287.0,0.05]
[1722267790244,0.00826,68289.0,68286.0,0.05]
[1722267790541,0.00826,68289.0,68287.0,0.07154355]
[1722267790733,0.00826,68289.0,68287.0,0.12154355]
[1722267791128,0.00826,68289.0,68287.0,0.07154355]
[1722267791505,0.00826,68289.0,68287.0,0.12154355]
[1722267791707,0.00826,68289.0,68282.0,0.1411]
[1722267791907,0.00826,68289.0,68283.0,0.05]
[1722267791908,0.0015142,68287.0,68283.0,0.05]
[1722267792203,0.00456459,68286.0,68282.0,0.2911]
[1722267792405,0.0015142,68285.0,68282.0,0.2911]
[1722267792808,0.00826,68289.0,68282.0,0.2911]
[1722267792809,0.0015142,68288.0,68282.0,0.2911]
[1722267793011,0.0015142,68288.0,68272.0,0.21801555]
[1722267793012,0.14309939,68284.0,68274.0,0.2269]
[1722267793218,0.00607897,68283.0,68275.0,0.05]
[1722267793416,0.00607897,68283.0,68274.0,0.0769]
[1722267793417,0.14766422,68282.0,68274.0,0.1769]
[1722267793633,0.00607903,68281.0,68275.0,0.05]
[1722267793836,0.00607903,68281.0,68260.0,0.146497]
[1722267793837,0.14766422,68280.0,68270.0,0.05]
[1722267794041,0.00607903,68279.0,68271.0,0.05]
[1722267794191,0.14766422,68278.0,68275.0,0.05]
[1722267794398,0.0015142,68277.0,68275.0,0.05]
[1722267794597,0.00607948,68277.0,68272.0,0.07154355]
[1722267794966,0.00607948,68277.0,68265.0,0.13444355]
[1722267794967,0.14766467,68276.0,68269.0,0.05]
[1722267795183,0.00607948,68275.0,68271.0,0.05]
[1722267795382,0.00607948,68275.0,68274.0,0.05]
[1722267795383,0.0015142,68275.0,68274.0,0.05]
[1722267795581,0.02449219,68275.0,68274.0,0.05]
[1722267795790,0.02754327,68275.0,68274.0,0.05]
[1722267796075,0.00456528,68275.0,68274.0,0.05]
[1722267796283,0.0015142,68281.0,68276.0,0.05]
[1722267796284,0.00456522,68280.0,68276.0,0.05]
[1722267796498,0.14309939,68281.0,68279.0,0.07154355]
[1722267796669,0.14309939,68281.0,68280.0,0.05]
[1722267796870,0.14766443,68281.0,68280.0,0.05]
[1722267797069,0.00456504,68281.0,68280.0,0.05]
[1722267797224,0.00456489,68284.0,68282.0,0.05]
[1722267797426,0.00456489,68283.0,68282.0,0.05]
[1722267797658,0.14309939,68284.0,68279.0,0.07154355]
[1722267797659,0.14309939,68284.0,68279.0,0.12154355]
[1722267797869,0.00607909,68283.0,68279.0,0.07154355]
[1722267798274,0.00456489,68282.0,68279.0,0.07154355]
[1722267798502,0.0015142,68281.0,68279.0,0.07154355]
[1722267798675,0.0015142,68281.0,68273.0,0.05]
[1722267798676,0.00456489,68280.0,68273.0,0.05]
[1722267799007,0.0015142,68279.0,68273.0,0.05]
[1722267799128,0.00456489,68278.0,68272.0,0.12154355]
[1722267799327,0.0015142,68277.0,68272.0,0.12154355]
[1722267799532,0.00456489,68276.0,68275.0,0.05]
[1722267799750,0.00456489,68276.0,68272.0,0.12154355]
[1722267799950,0.0015142,68275.0,68272.0,0.12154355]
[1722267800153,0.0015142,68277.0,68274.0,0.05]
[1722267800357,0.00456522,68276.0,68274.0,0.05]
[1722267800570,0.14766461,68276.0,68272.0,0.12154355]
[1722267800774,0.14461359,68275.0,68274.0,0.05]
[1722267800975,0.14917881,68275.0,68273.0,0.07154355]
[1722267801173,0.14461359,68275.0,68273.0,0.07154355]
[1722267801575,0.14461359,68275.0,68268.0,0.05]
[1722267801576,0.14461359,68275.0,68266.0,0.05]
[1722267801804,0.14461359,68275.0,68268.0,0.05]
[1722267802005,0.14461359,68275.0,68272.0,0.07154355]
[1722267802955,0.16759215,68275.0,68272.0,0.12154355]
[1722267803367,0.16759215,68275.0,68274.0,0.05]
[1722267803540,0.16607795,68275.0,68274.0,0.05]
[1722267804388,0.16607795,68275.0,68272.0,0.07154355]
[1722267804588,0.0015142,68274.0,68272.0,0.07154355]
[1722267804888,0.0015142,68274.0,68273.0,0.8014607]
[1722267805102,0.02297856,68275.0,68274.0,0.15]
[1722267805326,0.02297856,68275.0,68274.0,0.05]
[1722267805524,0.02297856,68275.0,68274.0,0.15]
[1722267805732,0.1546,68293.0,68276.0,0.05]
[1722267805935,0.14309939,68288.0,68283.0,0.07154355]
[1722267806327,0.14309939,68288.0,68286.0,0.05]
[1722267806525,0.14309939,68288.0,68283.0,0.07154355]
[1722267806526,0.02297482,68287.0,68283.0,0.07154355]
[1722267806727,0.16607421,68287.0,68285.0,0.05]
[1722267806933,0.16607421,68287.0,68283.0,0.07154355]
[1722267807469,0.14309939,68287.0,68284.0,0.05]
[1722267807609,0.14309939,68287.0,68285.0,0.05]
[1722267807798,0.14309939,68287.0,68286.0,0.05]
[1722267808063,0.14309939,68287.0,68285.0,0.05]
[1722267808266,0.01349992,68294.0,68280.0,0.05]
[1722267808267,0.14309939,68286.0,68280.0,0.05]
[1722267808483,0.14309939,68286.0,68279.0,0.05]
[1722267808724,0.14309939,68286.0,68280.0,0.07154355]
[1722267808929,0.14309939,68286.0,68280.0,0.12154355]
[1722267809135,0.14309939,68286.0,68280.0,0.07154355]
[1722267809710,0.14309939,68286.0,68273.0,0.1436]
[1722267809711,0.0015142,68285.0,68273.0,0.1936]
[1722267809945,0.0652,68287.0,68273.0,0.1936]
[1722267809946,0.22228478,68284.0,68275.0,0.05]
[1722267810117,0.07918539,68283.0,68279.0,0.07154355]
[1722267810292,0.14309939,68282.0,68280.0,0.05]
[1722267810488,0.16607601,68282.0,68281.0,0.05]
[1722267810879,0.02297662,68282.0,68281.0,0.05]
[1722267811219,0.00826,68289.0,68281.0,0.05]
[1722267811418,0.00826,68289.0,68286.0,0.05]
[1722267811419,0.2230448,68288.0,68286.0,0.05]
[1722267811675,0.07994541,68287.0,68286.0,0.05]
[1722267811867,0.2230448,68287.0,68286.0,0.05]
[1722267812015,0.22333182,68287.0,68286.0,0.05]
[1722267812216,0.14309939,68287.0,68286.0,0.05]
[1722267812419,0.14309939,68287.0,68280.0,0.1]
[1722267812420,0.14309939,68287.0,68285.0,0.05]
[1722267812886,0.14309939,68287.0,68280.0,0.1]
[1722267812887,0.14309939,68287.0,68286.0,0.05]
[1722267813407,0.00826,68289.0,68288.0,0.05]
[1722267813735,0.00826,68289.0,68284.0,0.1135]
[1722267813736,0.15135939,68289.0,68284.0,0.1135]
[1722267813933,0.15135939,68289.0,68288.0,0.05]
[1722267814138,0.15135939,68289.0,68288.0,0.1278]
[1722267814139,0.00826,68289.0,68288.0,0.1278]
[1722267814754,0.03123356,68289.0,68288.0,0.1278]
[1722267815126,0.00826,68289.0,68288.0,0.1278]
[1722267815308,0.00826,68289.0,68288.0,0.0778]
[1722267815686,0.00826,68289.0,68288.0,0.1278]
[1722267821222,0.00826,68289.0,68288.0,0.2278]
[1722267822438,0.00826,68289.0,68288.0,0.1278]
[1722267822642,0.00826,68289.0,68288.0,0.2278]
[1722267825345,0.15135939,68289.0,68284.0,0.0635]
[1722267825553,0.14461359,68288.0,68284.0,0.05]
[1722267825757,0.0015142,68288.0,68287.0,0.05]
[1722267826125,0.0015142,68288.0,68286.0,0.05]
[1722267826267,0.0015142,68288.0,68284.0,0.05]
[1722267826678,0.14309939,68287.0,68280.0,0.000924]
[1722267827027,0.0015142,68286.0,68280.0,0.000924]
[1722267827229,0.00826,68289.0,68280.0,0.000924]